[Event "Live Chess"]
[Site "Chess.com"]
[Date "2024.06.02"]
[Round "-"]
[White "Larchikov"]
[Black "Crowded_House"]
[Result "1-0"]
[WhiteElo "2058"]
[BlackElo "1664"]
[TimeControl "300"]
[EndTime "3:15:43 PDT"]
[Termination "Larchikov won by resignation"]

1. d4 {[%clk 0:04:55.6]} 1... e6 {[%clk 0:04:59.2]} 2. e4 {[%clk 0:04:52.6]}
2... d5 {[%clk 0:04:58.6]} 3. exd5 {[%clk 0:04:51.4]} 3... exd5 {[%clk
0:04:57.6]} 4. Nf3 {[%clk 0:04:51.3]} 4... Bd6 {[%clk 0:04:55.5]} 5. Bd3 {[%clk
0:04:50.9]} 5... Ne7 {[%clk 0:04:53.6]} 6. O-O {[%clk 0:04:50.5]} 6... h6 {[%clk
0:04:53]} 7. c3 {[%clk 0:04:48.9]} 7... O-O {[%clk 0:04:50.9]} 8. h3 {[%clk
0:04:48.3]} 8... Bf5 {[%clk 0:04:48.6]} 9. Na3 {[%clk 0:04:46]} 9... a6 {[%clk
0:04:46.4]} 10. Nc2 {[%clk 0:04:44.3]} 10... c6 {[%clk 0:04:45.5]} 11. Ne3
{[%clk 0:04:41.7]} 11... Bxd3 {[%clk 0:04:42.7]} 12. Qxd3 {[%clk 0:04:41.6]}
12... Nd7 {[%clk 0:04:41.2]} 13. Ng4 {[%clk 0:04:39.5]} 13... Ng6 {[%clk
0:04:37.6]} 14. g3 {[%clk 0:04:36.5]} 14... Qc7 {[%clk 0:04:30.2]} 15. Kg2
{[%clk 0:04:34.3]} 15... Rfe8 {[%clk 0:04:18.9]} 16. Bd2 {[%clk 0:04:32.9]}
16... Re7 {[%clk 0:04:14.5]} 17. Rae1 {[%clk 0:04:30.6]} 17... Rae8 {[%clk
0:04:14]} 18. h4 {[%clk 0:04:28.7]} 18... Rxe1 {[%clk 0:04:09.2]} 19. Rxe1
{[%clk 0:04:28.6]} 19... Rxe1 {[%clk 0:04:07.5]} 20. Bxe1 {[%clk 0:04:25.7]}
20... Qd8 {[%clk 0:03:57.4]} 21. Qf5 {[%clk 0:04:19.2]} 21... Ne7 {[%clk
0:03:41.8]} 22. Qd3 {[%clk 0:04:16.7]} 22... Ng6 {[%clk 0:03:37.8]} 23. Bd2
{[%clk 0:04:13]} 23... Qe7 {[%clk 0:03:34.5]} 24. Ne3 {[%clk 0:03:58.8]} 24...
Nf6 {[%clk 0:03:33.1]} 25. Nf5 {[%clk 0:03:55.5]} 25... Qd7 {[%clk 0:03:28.8]}
26. Nxd6 {[%clk 0:03:12.9]} 26... Qxd6 {[%clk 0:03:26.7]} 27. Qe2 {[%clk
0:03:09.9]} 27... Qe7 {[%clk 0:03:24.5]} 28. Qxe7 {[%clk 0:03:06.9]} 28... Nxe7
{[%clk 0:03:24.1]} 29. Bf4 {[%clk 0:03:05.5]} 29... Ne4 {[%clk 0:03:16.8]} 30.
Ne5 {[%clk 0:03:01.6]} 30... Ng6 {[%clk 0:03:10.5]} 31. Nxg6 {[%clk 0:02:51.9]}
31... fxg6 {[%clk 0:03:09.7]} 32. f3 {[%clk 0:02:48]} 32... Nf6 {[%clk
0:03:05.6]} 33. g4 {[%clk 0:02:46.9]} 33... Nd7 {[%clk 0:02:58.7]} 34. Kf2
{[%clk 0:02:41.8]} 34... Kf7 {[%clk 0:02:57.8]} 35. Ke3 {[%clk 0:02:40.2]} 35...
Nb6 {[%clk 0:02:57]} 36. b3 {[%clk 0:02:38.8]} 36... Kf6 {[%clk 0:02:44.8]} 37.
Bc7 {[%clk 0:02:36]} 37... Nd7 {[%clk 0:02:42.2]} 38. Kf4 {[%clk 0:02:34.8]}
38... Nf8 {[%clk 0:02:37.8]} 39. Bd8+ {[%clk 0:02:29.5]} 39... Ke6 {[%clk
0:02:28]} 40. c4 {[%clk 0:02:25.8]} 40... dxc4 {[%clk 0:02:24.2]} 41. bxc4
{[%clk 0:02:25.7]} 41... Kd7 {[%clk 0:02:19.8]} 42. Bb6 {[%clk 0:02:23.3]} 42...
Ne6+ {[%clk 0:02:12.8]} 43. Ke5 {[%clk 0:02:20.6]} 43... g5 {[%clk 0:02:07.6]}
44. hxg5 {[%clk 0:02:10.3]} 44... Nxg5 {[%clk 0:02:06.5]} 45. f4 {[%clk
0:02:08.5]} 45... Nf3+ {[%clk 0:02:00.6]} 46. Kf5 {[%clk 0:02:02.7]} 46... Nd2
{[%clk 0:01:47.8]} 47. c5 {[%clk 0:01:52.9]} 47... Ke7 {[%clk 0:01:43]} 48. Bc7
{[%clk 0:01:49]} 48... Nf3 {[%clk 0:01:36.4]} 49. Ke4 {[%clk 0:01:41.3]} 49...
Nd2+ {[%clk 0:01:34.1]} 50. Ke3 {[%clk 0:01:37.1]} 50... Nc4+ {[%clk 0:01:30.1]}
51. Kd3 {[%clk 0:01:36.1]} 51... Na3 {[%clk 0:01:26.6]} 52. Bb6 {[%clk
0:01:22.3]} 52... g6 {[%clk 0:01:19]} 53. d5 {[%clk 0:01:16.1]} 53... cxd5
{[%clk 0:01:16.4]} 54. c6 {[%clk 0:01:15.2]} 54... bxc6 {[%clk 0:01:13.4]} 55.
Bc5+ {[%clk 0:01:14.2]} 55... Ke6 {[%clk 0:01:11.7]} 56. Bxa3 {[%clk 0:01:14.1]}
56... h5 {[%clk 0:01:11.2]} 57. f5+ {[%clk 0:01:10.4]} 57... gxf5 {[%clk
0:01:09.3]} 58. gxh5 {[%clk 0:01:10.3]} 58... Kf6 {[%clk 0:01:08.7]} 59. Bc1
{[%clk 0:01:09.3]} 59... c5 {[%clk 0:01:05.8]} 60. h6 {[%clk 0:01:03.9]} 60...
c4+ {[%clk 0:01:04.1]} 61. Kd4 {[%clk 0:01:02.6]} 61... Kg6 {[%clk 0:01:01]} 62.
Kxd5 {[%clk 0:01:01.1]} 62... c3 {[%clk 0:00:59.3]} 63. Kd4 {[%clk 0:01:00.1]}
63... c2 {[%clk 0:00:57.8]} 64. Kc3 {[%clk 0:00:59.2]} 64... Kf7 {[%clk
0:00:51]} 65. Kxc2 {[%clk 0:00:58.2]} 65... Kg6 {[%clk 0:00:48.9]} 66. Bf4
{[%clk 0:00:57.2]} 66... a5 {[%clk 0:00:43.7]} 67. Kd3 {[%clk 0:00:57.1]} 67...
a4 {[%clk 0:00:36.7]} 68. Kc4 {[%clk 0:00:55.9]} 68... Kf7 {[%clk 0:00:34.6]}
69. Kb4 {[%clk 0:00:54.9]} 69... Kg6 {[%clk 0:00:33.7]} 70. Kxa4 {[%clk
0:00:54.8]} 1-0

[Event "Live Chess"]
[Site "Chess.com"]
[Date "2024.06.02"]
[Round "-"]
[White "Duke_of_Bebington"]
[Black "Bodhanas"]
[Result "0-1"]
[WhiteElo "1636"]
[BlackElo "2267"]
[TimeControl "300"]
[EndTime "3:15:59 PDT"]
[Termination "Bodhanas won by checkmate"]

1. e4 {[%clk 0:04:57.5]} 1... d6 {[%clk 0:04:58.8]} 2. d4 {[%clk 0:04:56.1]}
2... c6 {[%clk 0:04:56.8]} 3. Bd3 {[%clk 0:04:53.6]} 3... Nf6 {[%clk 0:04:54.8]}
4. Ne2 {[%clk 0:04:52]} 4... Nbd7 {[%clk 0:04:53.1]} 5. Be3 {[%clk 0:04:51.1]}
5... e5 {[%clk 0:04:52.2]} 6. Qd2 {[%clk 0:04:44.2]} 6... Qc7 {[%clk 0:04:49.6]}
7. f3 {[%clk 0:04:42.3]} 7... b6 {[%clk 0:04:47.4]} 8. Nbc3 {[%clk 0:04:40.9]}
8... Bb7 {[%clk 0:04:46.2]} 9. h4 {[%clk 0:04:35.4]} 9... h5 {[%clk 0:04:42.1]}
10. Ng3 {[%clk 0:04:18.8]} 10... g6 {[%clk 0:04:39.5]} 11. Bg5 {[%clk
0:04:16.6]} 11... Be7 {[%clk 0:04:38.1]} 12. Bc4 {[%clk 0:04:04.7]} 12... a5
{[%clk 0:04:29.5]} 13. O-O {[%clk 0:03:54.6]} 13... b5 {[%clk 0:04:28.2]} 14.
Be2 {[%clk 0:03:51.2]} 14... O-O {[%clk 0:04:20.2]} 15. Bxf6 {[%clk 0:03:37.9]}
15... Bxf6 {[%clk 0:04:18.6]} 16. d5 {[%clk 0:03:37.3]} 16... b4 {[%clk
0:04:16]} 17. Nd1 {[%clk 0:03:35.3]} 17... cxd5 {[%clk 0:04:13.7]} 18. exd5
{[%clk 0:03:31.8]} 18... Qc5+ {[%clk 0:04:11]} 19. Kh2 {[%clk 0:03:26.3]} 19...
Bxh4 {[%clk 0:04:05.1]} 20. Ne4 {[%clk 0:03:24.6]} 20... Qxd5 {[%clk 0:04:02.5]}
21. Qxd5 {[%clk 0:03:18]} 21... Bxd5 {[%clk 0:04:00.9]} 22. g3 {[%clk
0:03:15.9]} 22... Be7 {[%clk 0:03:59.2]} 23. Bb5 {[%clk 0:03:10.2]} 23... Nc5
{[%clk 0:03:56.4]} 24. Nxc5 {[%clk 0:03:04.6]} 24... dxc5 {[%clk 0:03:55.5]} 25.
Ne3 {[%clk 0:03:02.4]} 25... Be6 {[%clk 0:03:54.6]} 26. Rad1 {[%clk 0:03:00]}
26... Rad8 {[%clk 0:03:52.8]} 27. Bc4 {[%clk 0:02:59]} 27... Bxc4 {[%clk
0:03:48.5]} 28. Nxc4 {[%clk 0:02:57.4]} 28... f6 {[%clk 0:03:38.5]} 29. Nxa5
{[%clk 0:02:30.5]} 29... Rxd1 {[%clk 0:03:36.9]} 30. Rxd1 {[%clk 0:02:28.9]}
30... Rd8 {[%clk 0:03:36]} 31. Rxd8+ {[%clk 0:02:22.9]} 31... Bxd8 {[%clk
0:03:35.1]} 32. Nc6 {[%clk 0:02:17.8]} 32... Bb6 {[%clk 0:03:31.4]} 33. Ne7+
{[%clk 0:02:14]} 33... Kf7 {[%clk 0:03:30.3]} 34. Nd5 {[%clk 0:02:13.3]} 34...
Bd8 {[%clk 0:03:28.8]} 35. c4 {[%clk 0:02:09.1]} 35... bxc3 {[%clk 0:03:27.3]}
36. bxc3 {[%clk 0:02:07.9]} 36... Ke6 {[%clk 0:03:24.5]} 37. c4 {[%clk
0:02:06.7]} 37... f5 {[%clk 0:03:23.9]} 38. Kg2 {[%clk 0:02:04.6]} 38... g5
{[%clk 0:03:19.4]} 39. a4 {[%clk 0:01:59.4]} 39... e4 {[%clk 0:03:16.7]} 40.
fxe4 {[%clk 0:01:56.8]} 40... fxe4 {[%clk 0:03:15.9]} 41. Kf2 {[%clk 0:01:51]}
41... Ke5 {[%clk 0:03:14]} 42. Ke3 {[%clk 0:01:49.9]} 42... h4 {[%clk
0:03:12.9]} 43. gxh4 {[%clk 0:01:18.3]} 43... gxh4 {[%clk 0:03:10.8]} 44. Nc3
{[%clk 0:01:17.8]} 44... Bg5+ {[%clk 0:03:06]} 45. Kf2 {[%clk 0:01:12.5]} 45...
h3 {[%clk 0:02:57.1]} 46. Ne2 {[%clk 0:01:06]} 46... Bd2 {[%clk 0:02:49.9]} 47.
Kg3 {[%clk 0:00:57.4]} 47... e3 {[%clk 0:02:46.1]} 48. Kxh3 {[%clk 0:00:56]}
48... Ke4 {[%clk 0:02:45.8]} 49. Kg2 {[%clk 0:00:55.4]} 49... Kd3 {[%clk
0:02:45.1]} 50. Kf3 {[%clk 0:00:52.6]} 50... Kxc4 {[%clk 0:02:44.5]} 51. a5
{[%clk 0:00:47.4]} 51... Kb5 {[%clk 0:02:43.7]} 52. Nc3+ {[%clk 0:00:46.1]}
52... Bxc3 {[%clk 0:02:41.4]} 53. Kxe3 {[%clk 0:00:45]} 53... Bxa5 {[%clk
0:02:40.5]} 54. Kd3 {[%clk 0:00:44.9]} 54... c4+ {[%clk 0:02:39.9]} 55. Kc2
{[%clk 0:00:43.7]} 55... Kb4 {[%clk 0:02:39.3]} 56. Kb1 {[%clk 0:00:42.7]} 56...
c3 {[%clk 0:02:38.3]} 57. Kc2 {[%clk 0:00:41.9]} 57... Kc4 {[%clk 0:02:37.3]}
58. Kb1 {[%clk 0:00:41.1]} 58... Kb3 {[%clk 0:02:36.7]} 59. Kc1 {[%clk
0:00:40.2]} 59... Bc7 {[%clk 0:02:33.7]} 60. Kd1 {[%clk 0:00:38.7]} 60... c2+
{[%clk 0:02:32.8]} 61. Kc1 {[%clk 0:00:38.1]} 61... Bf4# {[%clk 0:02:31.5]} 0-1

[Event "Live Chess"]
[Site "Chess.com"]
[Date "2024.06.02"]
[Round "-"]
[White "Ninifu"]
[Black "silunn"]
[Result "0-1"]
[WhiteElo "2007"]
[BlackElo "2190"]
[TimeControl "300"]
[EndTime "3:16:02 PDT"]
[Termination "silunn won on time"]

1. d4 {[%clk 0:04:56.4]} 1... e6 {[%clk 0:04:59.9]} 2. c4 {[%clk 0:04:55.2]}
2... d5 {[%clk 0:04:59.5]} 3. Nf3 {[%clk 0:04:53]} 3... Nf6 {[%clk 0:04:59.1]}
4. g3 {[%clk 0:04:52.4]} 4... Be7 {[%clk 0:04:58.7]} 5. Bg2 {[%clk 0:04:51.8]}
5... O-O {[%clk 0:04:58.3]} 6. O-O {[%clk 0:04:51.2]} 6... c5 {[%clk 0:04:56.8]}
7. cxd5 {[%clk 0:04:49.5]} 7... exd5 {[%clk 0:04:55.9]} 8. Nc3 {[%clk
0:04:48.7]} 8... c4 {[%clk 0:04:53.4]} 9. Ne5 {[%clk 0:04:43.6]} 9... Nc6 {[%clk
0:04:49.2]} 10. e4 {[%clk 0:04:37.7]} 10... Be6 {[%clk 0:04:35.6]} 11. Nxc4
{[%clk 0:04:27]} 11... dxc4 {[%clk 0:04:27]} 12. d5 {[%clk 0:04:26.1]} 12... Bg4
{[%clk 0:04:13.4]} 13. Qa4 {[%clk 0:04:00.4]} 13... Ne5 {[%clk 0:03:58.5]} 14.
Be3 {[%clk 0:03:48.5]} 14... a6 {[%clk 0:03:52]} 15. f3 {[%clk 0:03:21.2]} 15...
b5 {[%clk 0:03:46.7]} 16. Qc2 {[%clk 0:03:19.7]} 16... Bc8 {[%clk 0:03:29.9]}
17. Bd4 {[%clk 0:03:05.2]} 17... Nd3 {[%clk 0:03:25]} 18. b3 {[%clk 0:02:57]}
18... Bb7 {[%clk 0:02:59.7]} 19. bxc4 {[%clk 0:02:53.7]} 19... bxc4 {[%clk
0:02:59.6]} 20. Rab1 {[%clk 0:02:27.5]} 20... Rb8 {[%clk 0:02:40.2]} 21. Qa4
{[%clk 0:01:45.6]} 21... Qc7 {[%clk 0:02:17.7]} 22. Kh1 {[%clk 0:01:29.5]} 22...
Bc5 {[%clk 0:02:10.6]} 23. Qxc4 {[%clk 0:01:23.9]} 23... Rfc8 {[%clk 0:01:48.2]}
24. Qxd3 {[%clk 0:01:03.2]} 24... Bxd4 {[%clk 0:01:46.6]} 25. Qxd4 {[%clk
0:01:01.3]} 25... Qxc3 {[%clk 0:01:45.7]} 26. Qxc3 {[%clk 0:01:00.5]} 26... Rxc3
{[%clk 0:01:44.8]} 27. Rfc1 {[%clk 0:00:57.2]} 27... Rxc1+ {[%clk 0:01:40.7]}
28. Rxc1 {[%clk 0:00:55.9]} 28... Nxd5 {[%clk 0:01:36.1]} 29. exd5 {[%clk
0:00:51.8]} 29... Bxd5 {[%clk 0:01:36]} 30. h4 {[%clk 0:00:48.6]} 30... g6
{[%clk 0:01:33.6]} 31. Rc2 {[%clk 0:00:37.4]} 31... Rb1+ {[%clk 0:01:29.9]} 32.
Kh2 {[%clk 0:00:35.7]} 32... Ra1 {[%clk 0:01:29.5]} 33. f4 {[%clk 0:00:26.8]}
33... Bxa2 {[%clk 0:01:24]} 34. Rc7 {[%clk 0:00:22.9]} 34... Be6 {[%clk
0:01:14.6]} 35. Ra7 {[%clk 0:00:20.4]} 35... Ra2 {[%clk 0:01:13.7]} 36. Kg1
{[%clk 0:00:14.9]} 36... Bc4 {[%clk 0:01:12.1]} 37. Be4 {[%clk 0:00:02.7]} 37...
Kg7 {[%clk 0:01:04.7]} 38. f5 {[%clk 0:00:01.8]} 38... Kf6 {[%clk 0:00:58.4]}
39. g4 {[%clk 0:00:00.6]} 39... gxf5 {[%clk 0:00:56.3]} 0-1

[Event "Live Chess"]
[Site "Chess.com"]
[Date "2024.06.02"]
[Round "-"]
[White "MagnersCarlsberg2870"]
[Black "WeakOldFinished"]
[Result "0-1"]
[WhiteElo "1780"]
[BlackElo "2160"]
[TimeControl "300"]
[EndTime "3:16:09 PDT"]
[Termination "WeakOldFinished won by resignation"]

1. d4 {[%clk 0:04:57.4]} 1... Nf6 {[%clk 0:04:58.6]} 2. Nf3 {[%clk 0:04:56.1]}
2... c5 {[%clk 0:04:57.3]} 3. e3 {[%clk 0:04:54.6]} 3... g6 {[%clk 0:04:51.3]}
4. Bd3 {[%clk 0:04:53.7]} 4... Bg7 {[%clk 0:04:50.3]} 5. c3 {[%clk 0:04:47.1]}
5... b6 {[%clk 0:04:46]} 6. e4 {[%clk 0:04:42.9]} 6... Bb7 {[%clk 0:04:43.4]} 7.
e5 {[%clk 0:04:41.8]} 7... Nd5 {[%clk 0:04:42.3]} 8. O-O {[%clk 0:04:33.7]} 8...
O-O {[%clk 0:04:40.7]} 9. c4 {[%clk 0:04:29.5]} 9... Nb4 {[%clk 0:04:39.4]} 10.
d5 {[%clk 0:04:28.1]} 10... e6 {[%clk 0:04:34.2]} 11. a3 {[%clk 0:04:26.4]}
11... Nxd3 {[%clk 0:04:32.7]} 12. Qxd3 {[%clk 0:04:21]} 12... exd5 {[%clk
0:04:32]} 13. cxd5 {[%clk 0:04:18.1]} 13... Ba6 {[%clk 0:04:31.2]} 14. Qc3
{[%clk 0:04:09.5]} 14... Bxf1 {[%clk 0:04:29.9]} 15. Kxf1 {[%clk 0:04:08.8]}
15... d6 {[%clk 0:04:29.6]} 16. Bg5 {[%clk 0:04:06.1]} 16... f6 {[%clk
0:04:20.2]} 17. Bf4 {[%clk 0:04:01.6]} 17... fxe5 {[%clk 0:04:18.5]} 18. Bg5
{[%clk 0:03:59.9]} 18... Qd7 {[%clk 0:04:14.8]} 19. Nbd2 {[%clk 0:03:58.4]}
19... Na6 {[%clk 0:04:07.1]} 20. Ne4 {[%clk 0:03:55.3]} 20... Nc7 {[%clk
0:04:06.2]} 21. b4 {[%clk 0:03:45.2]} 21... Nb5 {[%clk 0:04:01.2]} 22. Qc4
{[%clk 0:03:40.9]} 22... Nd4 {[%clk 0:04:00]} 23. bxc5 {[%clk 0:03:23.8]} 23...
bxc5 {[%clk 0:03:53.5]} 24. Nfd2 {[%clk 0:03:12.8]} 24... Rab8 {[%clk
0:03:48.1]} 25. f3 {[%clk 0:03:10.3]} 25... h6 {[%clk 0:03:40.9]} 0-1

[Event "Live Chess"]
[Site "Chess.com"]
[Date "2024.06.02"]
[Round "-"]
[White "JohanKjeldahl"]
[Black "slava_ukr"]
[Result "0-1"]
[WhiteElo "1807"]
[BlackElo "2425"]
[TimeControl "300"]
[EndTime "3:16:13 PDT"]
[Termination "slava_ukr won by resignation"]

1. c4 {[%clk 0:04:57.8]} 1... e5 {[%clk 0:04:58.9]} 2. Nc3 {[%clk 0:04:56.8]}
2... Nf6 {[%clk 0:04:57.5]} 3. Nf3 {[%clk 0:04:55.4]} 3... d6 {[%clk 0:04:54]}
4. e3 {[%clk 0:04:53.3]} 4... g6 {[%clk 0:04:52]} 5. d4 {[%clk 0:04:51.4]} 5...
Nbd7 {[%clk 0:04:50.5]} 6. Bd3 {[%clk 0:04:41.9]} 6... Bg7 {[%clk 0:04:48.8]} 7.
O-O {[%clk 0:04:40.3]} 7... O-O {[%clk 0:04:46.6]} 8. b3 {[%clk 0:04:38.5]} 8...
Re8 {[%clk 0:04:45]} 9. Bc2 {[%clk 0:04:37.1]} 9... c6 {[%clk 0:04:21.6]} 10.
Bb2 {[%clk 0:04:35]} 10... e4 {[%clk 0:04:13.4]} 11. Nd2 {[%clk 0:04:32.9]}
11... d5 {[%clk 0:04:12.6]} 12. cxd5 {[%clk 0:04:31.4]} 12... cxd5 {[%clk
0:04:12]} 13. Nb5 {[%clk 0:04:28.1]} 13... Bf8 {[%clk 0:04:04.2]} 14. a4 {[%clk
0:04:24.8]} 14... a6 {[%clk 0:04:02.6]} 15. Nc3 {[%clk 0:04:21.2]} 15... Bd6
{[%clk 0:04:01.5]} 16. Qe2 {[%clk 0:04:13.2]} 16... Nf8 {[%clk 0:03:24.4]} 17.
f4 {[%clk 0:04:09.5]} 17... h5 {[%clk 0:03:11.5]} 18. h3 {[%clk 0:04:02]} 18...
Bf5 {[%clk 0:03:08.9]} 19. Qf2 {[%clk 0:03:41.7]} 19... Rc8 {[%clk 0:03:01.5]}
20. Rac1 {[%clk 0:03:40]} 20... Qe7 {[%clk 0:02:55]} 21. Ne2 {[%clk 0:03:33.8]}
21... Ba3 {[%clk 0:02:49]} 22. Bxa3 {[%clk 0:03:30.4]} 22... Qxa3 {[%clk
0:02:47.7]} 23. Ng3 {[%clk 0:03:27.6]} 23... Bd7 {[%clk 0:02:03]} 24. Ne2 {[%clk
0:03:19.1]} 24... Qb2 {[%clk 0:01:52.9]} 25. f5 {[%clk 0:02:58.5]} 25... g5
{[%clk 0:01:48.3]} 26. Qg3 {[%clk 0:02:53.8]} 26... N8h7 {[%clk 0:01:47.1]} 27.
Qd6 {[%clk 0:02:47.2]} 27... Rxc2 {[%clk 0:01:44.9]} 28. Rxc2 {[%clk 0:02:44.2]}
28... Qxc2 {[%clk 0:01:43.9]} 0-1

[Event "Live Chess"]
[Site "Chess.com"]
[Date "2024.06.02"]
[Round "-"]
[White "matt1979"]
[Black "aleksl1977"]
[Result "1-0"]
[WhiteElo "1414"]
[BlackElo "1261"]
[TimeControl "300"]
[EndTime "3:16:25 PDT"]
[Termination "matt1979 won by resignation"]

1. f4 {[%clk 0:04:58.8]} 1... d5 {[%clk 0:04:56]} 2. e3 {[%clk 0:04:57.7]} 2...
Nc6 {[%clk 0:04:54.5]} 3. Bb5 {[%clk 0:04:56.2]} 3... Bd7 {[%clk 0:04:53.7]} 4.
Nf3 {[%clk 0:04:54.8]} 4... Bg4 {[%clk 0:04:50.2]} 5. O-O {[%clk 0:04:52.8]}
5... a6 {[%clk 0:04:47.9]} 6. Bxc6+ {[%clk 0:04:49.8]} 6... bxc6 {[%clk
0:04:47.1]} 7. Qe1 {[%clk 0:04:49]} 7... Rb8 {[%clk 0:04:46]} 8. Ne5 {[%clk
0:04:47.8]} 8... Bf5 {[%clk 0:04:44.6]} 9. Nxc6 {[%clk 0:04:45.8]} 9... Qd6
{[%clk 0:04:43.9]} 10. Nxb8 {[%clk 0:04:44.3]} 10... d4 {[%clk 0:04:36.5]} 11.
e4 {[%clk 0:04:35.5]} 11... Bg4 {[%clk 0:04:30.8]} 12. d3 {[%clk 0:04:27.9]}
12... Qb6 {[%clk 0:04:29.7]} 13. Nxa6 {[%clk 0:04:24.5]} 13... Qxa6 {[%clk
0:04:28.9]} 14. Qg3 {[%clk 0:04:13.9]} 14... Be6 {[%clk 0:04:26.2]} 15. f5
{[%clk 0:04:09.5]} 15... Bd7 {[%clk 0:04:24.5]} 16. Qxc7 {[%clk 0:04:05]} 16...
h5 {[%clk 0:04:21.8]} 17. Qb8+ {[%clk 0:04:02.6]} 17... Bc8 {[%clk 0:04:19.1]}
18. Nd2 {[%clk 0:03:53.6]} 18... h4 {[%clk 0:04:17.9]} 19. a4 {[%clk 0:03:48.5]}
19... Nf6 {[%clk 0:04:16.7]} 20. Qb5+ {[%clk 0:03:43.6]} 20... Qxb5 {[%clk
0:04:15.1]} 21. axb5 {[%clk 0:03:42.7]} 21... h3 {[%clk 0:04:10.8]} 22. g3
{[%clk 0:03:41]} 22... Ng4 {[%clk 0:04:09.8]} 23. Nc4 {[%clk 0:03:35.9]} 23...
Kd8 {[%clk 0:04:05.7]} 24. Ra8 {[%clk 0:03:32.7]} 24... Kc7 {[%clk 0:04:03.3]}
25. b6+ {[%clk 0:03:26]} 25... Kb7 {[%clk 0:04:01.7]} 26. Ra7+ {[%clk
0:03:23.6]} 26... Kb8 {[%clk 0:03:58.6]} 27. Bf4+ {[%clk 0:03:20.4]} 1-0

[Event "Live Chess"]
[Site "Chess.com"]
[Date "2024.06.02"]
[Round "-"]
[White "StoreySniper"]
[Black "JanMur7"]
[Result "0-1"]
[WhiteElo "2511"]
[BlackElo "2285"]
[TimeControl "300"]
[EndTime "3:17:05 PDT"]
[Termination "JanMur7 won on time"]

1. e4 {[%clk 0:04:53.7]} 1... e5 {[%clk 0:04:57.1]} 2. Nf3 {[%clk 0:04:49.1]}
2... Nc6 {[%clk 0:04:56.6]} 3. Bb5 {[%clk 0:04:48.2]} 3... Nf6 {[%clk
0:04:54.7]} 4. d3 {[%clk 0:04:46.6]} 4... Ne7 {[%clk 0:04:50.2]} 5. Nc3 {[%clk
0:04:38.6]} 5... c6 {[%clk 0:04:47.4]} 6. Ba4 {[%clk 0:04:35]} 6... Ng6 {[%clk
0:04:46.8]} 7. Bg5 {[%clk 0:04:14.7]} 7... Be7 {[%clk 0:04:43.8]} 8. Qe2 {[%clk
0:04:09.4]} 8... h6 {[%clk 0:04:40.8]} 9. Bd2 {[%clk 0:04:02.5]} 9... a5 {[%clk
0:04:34.4]} 10. Bb3 {[%clk 0:03:57.5]} 10... d6 {[%clk 0:04:32.5]} 11. a4 {[%clk
0:03:56]} 11... Nh5 {[%clk 0:04:16.9]} 12. O-O-O {[%clk 0:03:46.8]} 12... Nhf4
{[%clk 0:04:14.7]} 13. Qf1 {[%clk 0:03:45.7]} 13... Bd7 {[%clk 0:04:05.8]} 14.
h4 {[%clk 0:03:40.1]} 14... b5 {[%clk 0:03:54.3]} 15. g3 {[%clk 0:03:33.2]}
15... Ne6 {[%clk 0:03:51.9]} 16. h5 {[%clk 0:03:32.2]} 16... Ngf8 {[%clk
0:03:50.4]} 17. Nh4 {[%clk 0:03:30.9]} 17... Nd4 {[%clk 0:03:45.7]} 18. f4
{[%clk 0:03:13.1]} 18... Nxb3+ {[%clk 0:03:37.7]} 19. cxb3 {[%clk 0:03:11.8]}
19... b4 {[%clk 0:03:36.4]} 20. Ne2 {[%clk 0:03:01.1]} 20... Be6 {[%clk
0:03:35.3]} 21. Kc2 {[%clk 0:02:55.5]} 21... Qb6 {[%clk 0:03:32.6]} 22. f5
{[%clk 0:02:46.2]} 22... Qc5+ {[%clk 0:03:30]} 23. Kb1 {[%clk 0:02:39.2]} 23...
Bxb3 {[%clk 0:03:27]} 24. Rc1 {[%clk 0:02:38.1]} 24... Qb6 {[%clk 0:03:18.4]}
25. f6 {[%clk 0:02:34.1]} 25... gxf6 {[%clk 0:03:06.6]} 26. Nf5 {[%clk
0:02:32.9]} 26... Ne6 {[%clk 0:03:02.8]} 27. Be3 {[%clk 0:02:31.4]} 27... c5
{[%clk 0:03:00.5]} 28. Bxh6 {[%clk 0:02:10.4]} 28... Bxa4 {[%clk 0:02:55.5]} 29.
Bg7 {[%clk 0:01:58]} 29... Rh7 {[%clk 0:02:50.8]} 30. Nxe7 {[%clk 0:01:55.4]}
30... Kxe7 {[%clk 0:02:35.1]} 31. Qxf6+ {[%clk 0:01:46.3]} 31... Ke8 {[%clk
0:02:31.1]} 32. h6 {[%clk 0:01:42.5]} 32... Bb5 {[%clk 0:02:23.7]} 33. Rc4
{[%clk 0:01:34.7]} 33... Bxc4 {[%clk 0:02:14.2]} 34. dxc4 {[%clk 0:01:32.9]}
34... Nxg7 {[%clk 0:02:10.2]} 35. Qg5 {[%clk 0:01:05.7]} 35... Ne6 {[%clk
0:02:04.1]} 36. Qf5 {[%clk 0:01:02.1]} 36... Nf8 {[%clk 0:02:02.1]} 37. g4
{[%clk 0:00:55.3]} 37... a4 {[%clk 0:01:55.2]} 38. g5 {[%clk 0:00:52.8]} 38...
b3 {[%clk 0:01:49.7]} 39. Nc3 {[%clk 0:00:48.2]} 39... a3 {[%clk 0:01:48.5]} 40.
Nb5 {[%clk 0:00:46.9]} 40... axb2 {[%clk 0:01:45]} 41. Kxb2 {[%clk 0:00:43.4]}
41... Qa6 {[%clk 0:01:36.9]} 42. Kc3 {[%clk 0:00:33.5]} 42... Qa5+ {[%clk
0:01:31.7]} 43. Kd3 {[%clk 0:00:32.4]} 43... Rd8 {[%clk 0:01:11.5]} 44. Rb1
{[%clk 0:00:17.3]} 44... Rd7 {[%clk 0:00:52.6]} 45. Rxb3 {[%clk 0:00:14.7]}
45... Qe1 {[%clk 0:00:42.9]} 46. Nc3 {[%clk 0:00:13.7]} 46... Qg1 {[%clk
0:00:34]} 47. Rb8+ {[%clk 0:00:12.2]} 47... Rd8 {[%clk 0:00:33]} 48. Rb7 {[%clk
0:00:08.4]} 48... Qd4+ {[%clk 0:00:13.5]} 49. Kc2 {[%clk 0:00:07.7]} 49... Qxc4
{[%clk 0:00:11.6]} 50. Qf6 {[%clk 0:00:07]} 50... Qe6 {[%clk 0:00:10.6]} 51. Qf2
{[%clk 0:00:05.3]} 51... Qc8 {[%clk 0:00:08.2]} 52. Qe2 {[%clk 0:00:05.2]} 52...
Qxb7 {[%clk 0:00:07.2]} 53. Qc4 {[%clk 0:00:04.6]} 53... Qc6 {[%clk 0:00:06.5]}
54. Nd5 {[%clk 0:00:04.2]} 54... Qd7 {[%clk 0:00:05.8]} 55. Nf6+ {[%clk
0:00:04]} 55... Ke7 {[%clk 0:00:05]} 56. Nxd7 {[%clk 0:00:03.4]} 56... Kxd7
{[%clk 0:00:04.9]} 57. Qb5+ {[%clk 0:00:02.8]} 57... Ke7 {[%clk 0:00:04.1]} 58.
Qb7+ {[%clk 0:00:02.7]} 58... Rd7 {[%clk 0:00:03.5]} 59. Qb8 {[%clk 0:00:02.6]}
59... Ne6 {[%clk 0:00:03.4]} 60. Qa8 {[%clk 0:00:02]} 60... Nd4+ {[%clk
0:00:03.3]} 61. Kd3 {[%clk 0:00:00.8]} 61... Rc7 {[%clk 0:00:03.2]} 62. Qb8
{[%clk 0:00:00.2]} 62... c4+ {[%clk 0:00:03.1]} 0-1